bitfinex/quotes_SOLUSD_20250508
["timestamp","ask_amount","ask_price","bid_price","bid_amount"]
[1746685662302,32.64142923,150.57,150.56,15.96]
[1746685669510,40.10516569,150.57,150.56,15.96]
[1746685680000,56.70873877,150.57,150.54,17.623]
[1746685681002,49.24500231,150.57,150.54,17.623]
[1746685681715,56.70873877,150.57,150.54,17.623]
[1746685682094,56.70873877,150.57,150.54,1.663]
[1746685682298,56.70873877,150.57,150.54,17.623]
[1746685690329,49.24500231,150.57,150.54,17.623]
[1746685691636,49.24500231,150.57,150.54,17.623]
[1746685692416,49.24500231,150.57,150.54,25.08673646]
[1746685692924,49.24500231,150.57,150.54,17.623]
[1746685697842,56.70873877,150.57,150.54,17.623]
[1746685698137,7.46373646,150.56,150.54,15.96]
[1746685698332,56.70873877,150.57,150.54,15.96]
[1746685700329,49.24500231,150.57,150.54,15.96]
[1746685702041,49.24500231,150.57,150.54,23.42373646]
[1746685703535,49.24500231,150.57,150.54,15.96]
[1746685708649,49.24500231,150.57,150.54,23.42373646]
[1746685710527,49.24500231,150.57,150.54,15.96]
[1746685711044,49.24500231,150.57,150.54,24.99333646]
[1746685713150,49.24500231,150.57,150.54,17.5296]
[1746685713332,56.70873877,150.57,150.54,17.5296]
[1746685713536,7.46373646,150.56,150.54,15.96]
[1746685714251,7.46373646,150.55,150.54,15.96]
[1746685714756,14.10604798,150.55,150.54,15.96]
[1746685723263,6.64231152,150.55,150.54,15.96]
[1746685724665,6.64187035,150.56,150.54,15.96]
[1746685724841,14.10560681,150.56,150.54,15.96]
[1746685725355,6.64187035,150.56,150.54,15.96]
[1746685725766,6.64187035,150.56,150.54,23.42373646]
[1746685726565,6.64187035,150.56,150.54,15.96]
[1746685727670,6.64187035,150.56,150.54,23.42373646]
[1746685731774,6.64187035,150.56,150.54,15.96]
[1746685739378,14.10560681,150.56,150.54,15.96]
[1746685747681,7.46373646,150.55,150.54,15.96]
[1746685750583,14.10604798,150.55,150.54,15.96]
[1746685752583,6.64231152,150.55,150.54,15.96]
[1746685752780,7.46373646,150.55,150.54,15.96]
[1746685755093,14.10604798,150.55,150.54,15.96]
[1746685758878,26.0,150.53,150.5,15.94]
[1746685759078,7.46373646,150.51,150.5,15.94]
[1746685760097,14.10781326,150.51,150.5,15.94]
[1746685761294,14.10737185,150.52,150.5,15.94]
[1746685763097,6.64363539,150.52,150.5,15.94]
[1746685774187,6.64363539,150.52,150.5,23.40732589]
[1746685775510,6.64363539,150.52,150.51,7.46732589]
[1746685776787,6.64363539,150.52,150.5,17.4468]
[1746685776987,6.64363539,150.52,150.51,7.46732589]
[1746685777200,6.64363539,150.52,150.5,17.4468]
[1746685777401,6.64363539,150.52,150.51,7.46732589]
[1746685778092,6.64363539,150.52,150.51,7.46512034]
[1746685779100,6.64363539,150.52,150.5,17.4468]
[1746685779301,6.64363539,150.52,150.51,7.46512034]
[1746685780218,6.64363539,150.52,150.5,24.91192034]
[1746685780798,6.64363539,150.52,150.5,23.40512034]
[1746685782323,6.64363539,150.52,150.51,7.46512034]
[1746685787445,23.25141382,150.53,150.51,7.46512034]
[1746685787642,23.25141382,150.53,150.52,7.46512034]
[1746685790353,16.60821978,150.53,150.52,7.46512034]
[1746685797345,16.60821978,150.53,150.52,23.38512034]
[1746685801769,6.64275275,150.54,150.52,23.38512034]
[1746685801974,6.64275275,150.54,150.53,7.46512034]
[1746685803104,23.24751136,150.56,150.53,7.46512034]
[1746685803398,23.24751136,150.56,150.55,7.46512034]
[1746685804898,6.64187035,150.56,150.55,7.46512034]
[1746685808313,23.24345861,150.58,150.55,7.46512034]
[1746685808611,23.24345861,150.58,150.52,15.92]
[1746685808612,23.24345861,150.58,150.57,7.46512034]
[1746685808810,23.24345861,150.58,150.57,23.38512034]
[1746685832529,23.24345861,150.58,150.57,7.46512034]
[1746685837327,23.24345861,150.58,150.57,23.38512034]
[1746685851815,23.24345861,150.58,150.57,7.46512034]
[1746685859830,23.24345861,150.58,150.56,15.9]
[1746685860132,23.24345861,150.58,150.57,7.46512034]
[1746685860757,23.24345861,150.58,150.56,23.36512034]
[1746685861935,23.24345861,150.58,150.57,7.46512034]
[1746685863957,23.24345861,150.58,150.56,15.9]
[1746685864148,23.24345861,150.58,150.56,23.36512034]
[1746685865365,23.24345861,150.58,150.56,15.9]
[1746685865661,23.24345861,150.58,150.56,23.36512034]
[1746685874458,23.24345861,150.58,150.56,15.9]
[1746685874643,23.24654622,150.56,150.53,15.88]
[1746685874958,23.24654622,150.56,150.53,23.34512034]
[1746685875369,23.24654622,150.56,150.54,7.46512034]
[1746685875570,23.24654622,150.56,150.55,7.46512034]
[1746685884779,23.24654622,150.56,150.55,23.34512034]
[1746685900686,23.24654622,150.56,150.55,15.88]
[1746685900889,23.24654622,150.56,150.55,23.34512034]
[1746685904277,23.24654622,150.56,150.55,15.88]
[1746685904483,23.24654622,150.56,150.55,23.34512034]
[1746685910613,23.24654622,150.56,150.55,15.88]
[1746685910787,23.24654622,150.56,150.55,23.34512034]
[1746685911604,23.24654622,150.56,150.55,15.88]
[1746685911809,30.71166656,150.56,150.55,15.88]
[1746685913725,49.36131542,150.56,150.55,15.88]
[1746685914533,26.0,150.53,150.51,15.88]
[1746685914701,26.0,150.52,150.51,15.88]
[1746685915527,32.64363539,150.52,150.51,15.88]
[1746685919530,32.64363539,150.52,150.51,23.34512034]
[1746685920428,32.64363539,150.52,150.51,15.88]
[1746685921222,32.64363539,150.52,150.51,23.34512034]
[1746685932120,32.64363539,150.52,150.51,15.88]
[1746685932320,32.64363539,150.52,150.51,23.34512034]
[1746685936045,32.64363539,150.52,150.51,23.34650122]
[1746685939138,32.64363539,150.52,150.51,7.46650122]
[1746685941758,32.64363539,150.52,150.5,15.86]
[1746685941964,32.64363539,150.52,150.51,7.46650122]
[1746685951972,32.64363539,150.52,150.5,15.86]
[1746685952165,32.64363539,150.52,150.51,7.46650122]
[1746685955887,32.64363539,150.52,150.5,23.32650122]
[1746685962268,32.64363539,150.52,150.5,15.86]
[1746685962570,32.64363539,150.52,150.5,23.32650122]
[1746685965884,32.64363539,150.52,150.5,15.86]
[1746685968587,49.25272388,150.52,150.48,7.46650122]
[1746685968788,82.47090086,150.52,150.47,15.84]
[1746685968990,82.47090086,150.52,150.48,7.46650122]
[1746685971088,18.64964886,150.51,150.47,15.84]
[1746685971288,26.0,150.5,150.47,23.30650122]
[1746685971991,26.0,150.5,150.47,15.84]
[1746685972297,26.0,150.5,150.47,23.30650122]
[1746685972898,6.64495979,150.49,150.47,23.30650122]
[1746685983802,6.64495979,150.49,150.48,7.46650122]
[1746685992711,6.64495979,150.49,150.48,14.93300244]
[1746685992901,49.25272388,150.52,150.48,7.46650122]
[1746685993102,23.25272388,150.52,150.51,7.46650122]
[1746685993506,49.25272388,150.52,150.51,7.46650122]
[1746685999123,6.64142923,150.57,150.51,7.46650122]
[1746685999420,49.24500231,150.57,150.56,7.46650122]
[1746685999617,23.24500231,150.57,150.56,7.46650122]
[1746685999796,49.24500231,150.57,150.56,7.46650122]
[1746686000000,49.24500231,150.57,150.52,15.84]
[1746686000210,49.24500231,150.57,150.56,7.46650122]
[1746686001228,49.24500231,150.57,150.52,15.84]
[1746686001527,49.24500231,150.57,150.56,7.46650122]
[1746686002740,23.24500231,150.57,150.56,7.46650122]
[1746686003037,6.64142923,150.57,150.56,7.46650122]
[1746686004039,23.24144415,150.6,150.56,7.46650122]
[1746686004335,23.24144415,150.6,150.58,7.46650122]
[1746686010436,23.24144415,150.6,150.59,7.46650122]
[1746686010643,23.24144415,150.6,150.57,15.82]
[1746686010949,23.24144415,150.6,150.59,7.46650122]
[1746686012376,16.60133791,150.6,150.59,7.46650122]
[1746686012861,16.60133791,150.6,150.58,7.46650122]
[1746686013377,16.60133791,150.6,150.57,15.82]
[1746686013557,16.60133791,150.6,150.58,7.46650122]
[1746686014670,16.60133791,150.6,150.57,23.28650122]
[1746686015870,56.43340856,150.62,150.57,23.28650122]
[1746686016047,56.43340856,150.62,150.58,7.46650122]
[1746686016770,56.43340856,150.62,150.57,15.82]
[1746686016954,56.43340856,150.62,150.57,23.28650122]
[1746686019751,193.03340856,150.62,150.57,23.28650122]
[1746686021775,18.64964886,150.61,150.57,15.82]
[1746686021954,26.0,150.6,150.57,15.82]
[1746686022278,26.0,150.58,150.57,15.82]
[1746686022852,32.64098817,150.58,150.57,15.82]
[1746686023774,32.64098817,150.58,150.57,23.28650122]
[1746686023943,32.64098817,150.58,150.57,15.82]
[1746686025463,51.29063703,150.58,150.57,15.82]
[1746686033882,26.0,150.54,150.53,15.82]
[1746686034655,32.64275275,150.54,150.53,15.82]
[1746686034855,51.29240161,150.54,150.53,15.82]
[1746686039389,101.11304728,150.54,150.49,15.82]
[1746686039597,136.6,150.53,150.49,15.82]
[1746686040585,23.25272388,150.52,150.49,15.82]
[1746686044599,26.0,150.5,150.49,15.82]
[1746686045889,32.64451827,150.5,150.49,15.82]
[1746686060913,32.64451827,150.5,150.49,23.28650122]
[1746686062506,6.64451827,150.5,150.49,23.28650122]
[1746686062708,16.60908849,150.52,150.49,23.28650122]
[1746686062907,23.25272388,150.52,150.51,7.46650122]
[1746686064901,26.0,150.53,150.51,7.46650122]
[1746686065918,6.64363539,150.52,150.49,15.82]
[1746686066114,6.64363539,150.52,150.51,7.46650122]
[1746686067501,23.25272388,150.52,150.5,7.46650122]
[1746686067702,23.25272388,150.52,150.49,23.28650122]
[1746686070420,23.25272388,150.52,150.5,7.46650122]
[1746686083429,23.25272388,150.52,150.51,7.46650122]
[1746686084432,23.25272388,150.52,150.51,23.26650122]
[1746686085430,6.64363539,150.52,150.51,23.26650122]
[1746686085637,6.64363539,150.52,150.51,24.85050122]
[1746686086425,6.64363539,150.52,150.51,17.384]
[1746686086625,6.64363539,150.52,150.51,24.85050122]
[1746686087527,23.24887191,150.55,150.51,24.85050122]
[1746686087721,23.24887191,150.55,150.54,7.46650122]
[1746686087921,23.24887191,150.55,150.51,23.8636]
[1746686088127,23.24887191,150.55,150.54,7.46650122]
[1746686091549,23.24887191,150.55,150.51,23.8636]
[1746686091846,23.24887191,150.55,150.54,7.46650122]
[1746686104361,23.24887191,150.55,150.54,23.26650122]
[1746686107951,6.64231152,150.55,150.54,23.26650122]
[1746686108537,6.64142923,150.57,150.54,23.26650122]
[1746686108754,6.64142923,150.57,150.56,7.46650122]
[1746686108934,23.24500231,150.57,150.55,7.46650122]
[1746686109139,23.24500231,150.57,150.54,15.8]
[1746686109339,23.24500231,150.57,150.54,23.26650122]
[1746686111253,23.24500231,150.57,150.54,15.8]
[1746686114963,26.0,150.55,150.54,15.8]
[1746686115772,32.64231152,150.55,150.54,15.8]
[1746686120201,32.64231152,150.55,150.54,23.26650122]
[1746686120550,32.64231152,150.55,150.54,15.8]
[1746686129188,26.0,150.55,150.54,15.8]
[1746686131589,32.64231152,150.55,150.54,15.8]
[1746686145686,40.10463278,150.55,150.54,15.8]
[1746686160945,89.92196921,150.55,150.51,15.78]
[1746686161249,7.46232126,150.54,150.51,15.78]
[1746686161622,7.46232126,150.53,150.51,15.78]
[1746686162649,82.45964795,150.55,150.51,15.78]
[1746686162822,7.46232126,150.54,150.51,15.78]
[1746686163027,6.64319404,150.53,150.51,15.78]
[1746686164145,14.1055153,150.53,150.51,15.78]
[1746686165253,6.64319404,150.53,150.51,15.78]
[1746686169448,14.1055153,150.53,150.51,15.78]
[1746686174767,33.46232126,150.52,150.51,15.78]
[1746686175057,33.46232126,150.52,150.47,15.78]
[1746686175243,7.46232126,150.5,150.47,15.78]
[1746686176657,6.64495979,150.49,150.47,15.78]
[1746686178057,6.64495979,150.49,150.48,7.46232126]
[1746686178262,6.64495979,150.49,150.47,23.24232126]
[1746686178641,6.64451827,150.5,150.48,7.46232126]
[1746686178846,6.64451827,150.5,150.49,9.09212126]
[1746686179054,6.64451827,150.5,150.49,15.68042126]
[1746686179738,6.64451827,150.5,150.49,19.87781173]
[1746686180060,6.64363539,150.52,150.49,19.87781173]
[1746686180278,6.64363539,150.52,150.51,11.65971173]
[1746686181162,23.25219735,150.53,150.51,11.65971173]
[1746686181362,23.25219735,150.53,150.52,15.78]
[1746686181962,23.25219735,150.53,150.52,27.43971173]
[1746686188279,23.25219735,150.53,150.52,15.78]
[1746686188569,23.25219735,150.53,150.52,27.43971173]
[1746686199381,23.24809033,150.55,150.52,27.43971173]
[1746686201759,23.24809033,150.55,150.52,23.24342596]
[1746686201961,23.24809033,150.55,150.52,15.78]
[1746686202284,23.24809033,150.55,150.52,23.24342596]
[1746686206689,23.24809033,150.55,150.52,15.78]
[1746686206690,30.71151629,150.55,150.52,15.78]
[1746686206984,7.46342596,150.54,150.52,15.78]
[1746686208489,6.64319404,150.53,150.52,15.78]
[1746686211689,14.10662,150.53,150.52,15.78]
[1746686212608,6.64319404,150.53,150.52,15.78]
[1746686217895,7.46342596,150.53,150.52,15.78]
[1746686218398,7.46342596,150.54,150.52,15.78]
[1746686219501,6.64319404,150.53,150.52,15.78]
[1746686220200,14.10662,150.53,150.52,15.78]
[1746686222484,6.64319404,150.53,150.52,15.78]
[1746686224889,6.64319404,150.53,150.52,23.24342596]
[1746686228412,136.6,150.54,150.52,23.24342596]
[1746686228592,136.6,150.54,150.53,7.46342596]
[1746686229509,16.60577881,150.55,150.53,7.46342596]
[1746686229707,23.24809033,150.55,150.53,7.46342596]
[1746686231826,23.24500231,150.57,150.53,7.46342596]
[1746686232025,30.70842827,150.57,150.53,7.46342596]
[1746686233822,30.70842827,150.57,150.52,15.78]
[1746686234012,30.70842827,150.57,150.53,7.46342596]
[1746686240199,23.24500231,150.57,150.53,7.46342596]
[1746686242533,23.24500231,150.57,150.54,15.76]
[1746686242740,23.24500231,150.57,150.55,7.46342596]
[1746686243039,6.64142923,150.57,150.56,7.46342596]
[1746686243837,6.64098817,150.58,150.56,7.46342596]
[1746686244616,6.64098817,150.58,150.54,17.4094]
[1746686244816,6.64098817,150.58,150.56,7.46342596]
[1746686247138,6.64054718,150.59,150.56,7.46342596]
[1746686247340,23.24191513,150.59,150.56,7.46342596]
[1746686249430,23.24191513,150.59,150.55,7.46342596]
[1746686251039,24.06479391,150.59,150.55,7.46342596]
[1746686252241,30.70534109,150.59,150.55,7.46342596]
[1746686254825,6.64054718,150.59,150.58,7.46342596]
[1746686255639,6.64054718,150.59,150.57,7.46342596]
[1746686255832,6.64054718,150.59,150.56,7.46342596]
[1746686256246,6.64054718,150.59,150.55,6.2328]
[1746686256439,6.64054718,150.59,150.56,7.46342596]
[1746686256934,23.24191513,150.59,150.56,7.46342596]
[1746686257328,23.24191513,150.59,150.55,7.46342596]
[1746686260639,30.70534109,150.59,150.55,7.46342596]
[1746686260947,23.24191513,150.59,150.55,7.46342596]
[1746686266443,63.90807699,150.59,150.54,24.87282596]
[1746686266646,7.46342596,150.58,150.54,24.87282596]
[1746686267332,63.90807699,150.59,150.54,24.87282596]
[1746686280457,49.80410385,150.59,150.54,24.87282596]
[1746686280664,57.26752981,150.59,150.54,24.87282596]
[1746686281770,63.90807699,150.59,150.54,24.87282596]
[1746686282064,7.46342596,150.58,150.54,17.4094]
[1746686282265,33.46342596,150.58,150.54,15.76]
[1746686282640,7.46342596,150.57,150.54,15.76]
[1746686283766,6.64187035,150.56,150.54,15.76]
[1746686288370,23.24522559,150.57,150.54,15.76]
[1746686289380,23.24522559,150.57,150.54,23.22342596]
[1746686289561,23.24522559,150.57,150.55,7.46342596]
[1746686290567,16.60379636,150.57,150.55,7.46342596]
[1746686291678,16.60379636,150.57,150.54,15.76]
[1746686291870,6.64098817,150.58,150.54,15.76]
[1746686292078,6.64098817,150.58,150.57,7.46342596]
[1746686292384,6.64098817,150.58,150.55,1.6655]
[1746686292563,6.64098817,150.58,150.55,9.12892596]
[1746686293566,6.64098817,150.58,150.56,7.46342596]
[1746686294280,6.64054718,150.59,150.56,7.46342596]
[1746686294474,6.64054718,150.59,150.58,7.46342596]
[1746686295794,23.23728587,150.62,150.58,7.46342596]
[1746686295992,23.23728587,150.62,150.59,23.22342596]
[1746686299688,23.23728587,150.62,150.61,7.46342596]
[1746686299892,23.23728587,150.62,150.6,7.46342596]
[1746686300894,23.23728587,150.62,150.59,23.22342596]
[1746686301778,23.23728587,150.62,150.59,15.76]
[1746686303197,23.23728587,150.62,150.59,23.22342596]
[1746686305696,23.23728587,150.62,150.59,15.76]
[1746686305887,23.23728587,150.62,150.59,23.22342596]
[1746686306789,23.23728587,150.62,150.59,15.76]
[1746686308197,23.23728587,150.62,150.6,7.46342596]
[1746686308691,23.23728587,150.62,150.59,15.76]
[1746686308886,23.23728587,150.62,150.59,23.22342596]
[1746686309594,23.23728587,150.62,150.59,15.76]
[1746686309796,23.23728587,150.62,150.59,23.22342596]
[1746686310978,30.70071183,150.62,150.59,15.76]
[1746686311375,23.23728587,150.62,150.59,15.76]
[1746686312679,30.70071183,150.62,150.59,15.76]
[1746686312999,23.23728587,150.62,150.59,15.76]
[1746686313703,23.23728587,150.62,150.6,7.46342596]
[1746686313906,23.23728587,150.62,150.59,23.22342596]
[1746686314586,16.59806134,150.62,150.6,7.46342596]
[1746686315215,6.63878377,150.63,150.61,7.46342596]
[1746686315506,6.63878377,150.63,150.6,1.6031]
[1746686315887,6.63878377,150.63,150.61,7.46342596]
[1746686316394,23.2357432,150.63,150.6,9.06652596]
[1746686317203,6.63878377,150.63,150.62,7.46342596]
[1746686318802,6.63878377,150.63,150.61,7.46342596]
[1746686319196,23.23265847,150.65,150.61,7.46342596]
[1746686319801,30.69608443,150.65,150.62,15.86]
[1746686321001,7.46342596,150.64,150.62,15.86]
[1746686321204,6.63878377,150.63,150.62,15.86]
[1746686321908,14.10220973,150.63,150.62,15.86]
[1746686325901,7.46342596,150.64,150.62,15.86]
[1746686326705,24.05818201,150.65,150.62,15.86]
[1746686326894,30.69608443,150.65,150.62,15.86]
[1746686328415,23.23265847,150.65,150.62,15.86]
[1746686328792,30.69608443,150.65,150.62,15.86]
[1746686329511,23.23265847,150.65,150.62,15.86]
[1746686331501,23.23265847,150.65,150.62,23.32342596]
[1746686332603,16.59475605,150.65,150.62,23.32342596]
[1746686333004,16.59475605,150.65,150.63,7.46342596]
[1746686333805,23.23265847,150.65,150.62,23.32342596]
[1746686334298,23.23265847,150.65,150.62,15.86]
[1746686342820,16.59475605,150.65,150.62,23.32342596]
[1746686343316,16.59475605,150.65,150.62,15.86]
[1746686344105,24.05818201,150.65,150.62,15.86]
[1746686344418,7.46342596,150.64,150.62,15.86]
[1746686344622,24.05818201,150.65,150.62,15.86]
[1746686345006,30.69608443,150.65,150.62,15.86]
[1746686346207,162.6,150.68,150.62,23.32342596]
[1746686346208,23.22957456,150.67,150.62,23.32342596]
[1746686346406,30.69300052,150.67,150.62,23.32342596]
[1746686347549,23.22957456,150.67,150.62,15.86]
[1746686347827,23.22957456,150.67,150.63,7.46342596]
[1746686348925,30.69300052,150.67,150.62,23.32342596]
[1746686350826,30.69300052,150.67,150.62,15.86]
[1746686351028,30.69300052,150.67,150.62,23.32342596]
[1746686351537,23.22957456,150.67,150.62,23.32342596]
[1746686351704,30.69300052,150.67,150.62,23.32342596]
[1746686353730,23.22957456,150.67,150.62,23.32342596]
[1746686353915,30.69300052,150.67,150.62,23.32342596]
[1746686355629,30.69300052,150.67,150.62,15.86]
[1746686355927,30.69300052,150.67,150.62,23.32342596]
[1746686357330,7.46342596,150.66,150.62,15.86]
[1746686357713,7.46342596,150.63,150.62,15.86]
[1746686358026,7.46342596,150.64,150.62,15.86]
[1746686359432,6.63878377,150.63,150.62,15.86]
[1746686361136,14.10220973,150.63,150.62,15.86]
[1746686370435,16.5949772,150.65,150.62,15.86]
[1746686370636,7.46342596,150.63,150.62,15.86]
[1746686373645,14.10220973,150.63,150.62,15.86]
[1746686380030,6.63878377,150.63,150.62,15.86]
[1746686388049,6.63878377,150.63,150.62,23.32342596]
[1746686388552,6.63878377,150.63,150.62,15.86]
[1746686390853,6.63834306,150.64,150.62,15.86]
[1746686392138,14.10176902,150.64,150.62,15.86]
[1746686392350,7.46342596,150.63,150.62,15.86]
[1746686393033,14.10176902,150.64,150.62,15.86]
[1746686393234,6.63834306,150.64,150.62,15.86]
[1746686393962,14.10176902,150.64,150.62,15.86]
[1746686394145,6.63834306,150.64,150.62,15.86]
[1746686399254,23.23287962,150.65,150.62,15.86]
[1746686399857,30.69630558,150.65,150.62,15.86]
[1746686400560,7.46342596,150.64,150.62,15.86]
[1746686400757,30.69630558,150.65,150.62,15.86]
[1746686401070,7.46342596,150.64,150.62,15.86]
[1746686401280,6.63878377,150.63,150.62,15.86]
[1746686403472,16.5949772,150.65,150.62,23.32342596]
[1746686403652,16.5949772,150.65,150.62,15.86]
[1746686403846,24.05840316,150.65,150.62,15.86]
[1746686404047,7.46342596,150.63,150.62,15.86]
[1746686404375,7.46342596,150.64,150.62,15.86]
[1746686404973,14.10220973,150.63,150.62,15.86]
[1746686407852,18.28965718,150.63,150.62,15.86]
[1746686415064,11.65087341,150.64,150.62,15.86]
[1746686415267,23.23287962,150.65,150.62,15.86]
[1746686415483,34.88375303,150.65,150.62,15.86]
[1746686416093,23.23287962,150.65,150.62,15.86]
[1746686418482,23.23287962,150.65,150.62,27.51087341]
[1746686420589,6.63790242,150.65,150.64,11.65087341]
[1746686420781,6.63790242,150.65,150.62,15.86]
[1746686421086,6.63790242,150.65,150.62,27.51087341]
[1746686421276,23.23265847,150.65,150.62,27.51087341]
[1746686421794,34.88353188,150.65,150.62,15.86]
[1746686421979,11.65087341,150.64,150.62,15.86]
[1746686422800,34.88353188,150.65,150.62,15.86]
[1746686423374,11.65087341,150.64,150.62,15.86]
[1746686423575,37.65087341,150.63,150.62,15.86]
[1746686424073,11.65087341,150.63,150.62,15.86]
[1746686424487,23.23265847,150.65,150.62,15.86]
[1746686424671,26.0,150.63,150.62,15.86]
[1746686424868,37.65087341,150.63,150.62,15.86]
[1746686425070,44.28965718,150.63,150.62,15.86]
[1746686440101,94.08053548,150.63,150.58,15.9]
[1746686440403,11.65087341,150.59,150.58,15.9]
[1746686441298,11.65087341,150.6,150.58,15.9]
[1746686441974,6.64054718,150.59,150.58,15.9]
[1746686449707,6.64010624,150.6,150.58,15.9]
[1746686449908,14.09884664,150.6,150.58,15.9]
[1746686450981,40.09884664,150.6,150.58,15.9]
[1746686453003,7.4587404,150.59,150.58,15.9]
[1746686453383,26.0,150.56,150.54,15.9]
[1746686453703,33.4587404,150.55,150.54,15.9]
[1746686454002,40.10105192,150.55,150.54,15.9]
[1746686455706,44.30565744,150.55,150.54,15.9]
[1746686457806,18.30565744,150.55,150.54,15.9]
[1746686458105,44.30565744,150.55,150.54,15.9]
[1746686476323,18.30565744,150.55,150.54,15.9]
[1746686477729,14.11023998,150.55,150.54,15.9]
[1746686484619,26.0,150.52,150.5,15.82]
[1746686484817,33.46792846,150.52,150.5,15.82]
[1746686485630,6.6440768,150.51,150.5,15.82]
[1746686492038,7.46792846,150.51,150.5,15.82]
[1746686493337,14.11156385,150.52,150.5,15.82]
[1746686493519,6.64363539,150.52,150.5,23.28792846]
[1746686493840,6.64363539,150.52,150.5,15.82]
[1746686500444,6.64363539,150.52,150.51,7.46792846]
[1746686500739,6.64363539,150.52,150.51,9.07322846]
[1746686501846,6.64319404,150.53,150.51,9.07322846]
[1746686505157,6.64319404,150.53,150.52,7.46792846]
[1746686505535,6.64319404,150.53,150.51,9.07322846]
[1746686506950,23.24813864,150.55,150.51,9.07322846]
[1746686507857,23.24813864,150.55,150.51,1.6053]
[1746686508034,16.60582712,150.55,150.52,7.46792846]
[1746686508848,16.60582712,150.55,150.51,8.0651]
[1746686509147,16.60582712,150.55,150.52,7.46792846]
[1746686511944,23.24813864,150.55,150.52,7.46792846]
[1746686513059,23.24813864,150.55,150.51,15.53302846]
[1746686513235,30.7160671,150.55,150.51,15.53302846]
[1746686513559,16.60582712,150.55,150.51,15.53302846]
[1746686514940,23.24813864,150.55,150.51,15.53302846]
[1746686515141,23.24813864,150.55,150.51,8.0651]
[1746686515342,23.24813864,150.55,150.51,15.53302846]
[1746686517761,23.24813864,150.55,150.52,15.82]
[1746686519835,23.24813864,150.55,150.52,23.28792846]
[1746686520056,6.64231152,150.55,150.52,23.28792846]
[1746686520257,6.64231152,150.55,150.53,7.46792846]
[1746686521364,6.64187035,150.56,150.53,7.46792846]
[1746686521661,6.64187035,150.56,150.52,23.28792846]
[1746686523863,30.71447468,150.56,150.52,15.82]
[1746686541380,30.71447468,150.56,150.52,23.28792846]
[1746686541583,23.24654622,150.56,150.52,23.28792846]
[1746686549070,6.64187035,150.56,150.53,26.11757732]
[1746686549283,6.64098817,150.58,150.55,9.00752846]
[1746686549478,6.64010624,150.6,150.57,26.11757732]
[1746686549669,6.64010624,150.6,150.59,7.46792846]
[1746686550378,16.60024773,150.61,150.59,7.46792846]
[1746686550787,16.60024773,150.61,150.58,23.28792846]
[1746686552088,16.60024773,150.61,150.58,15.82]
[1746686552471,23.23991309,150.61,150.58,23.28792846]
[1746686552679,23.23991309,150.61,150.59,7.46792846]
[1746686554993,16.60024773,150.61,150.59,7.46792846]
[1746686557996,23.2357432,150.63,150.59,7.46792846]
[1746686561704,23.2357432,150.63,150.6,7.46792846]
[1746686562292,23.2357432,150.63,150.59,18.64964886]
[1746686562491,23.2357432,150.63,150.6,7.46792846]
[1746686562987,23.2357432,150.63,150.59,18.64964886]
[1746686563307,23.2357432,150.63,150.59,7.46792846]
[1746686563504,30.70367166,150.63,150.58,15.82]
[1746686563688,7.46792846,150.62,150.58,15.82]
[1746686563878,7.46792846,150.61,150.58,15.82]
[1746686564084,7.46792846,150.62,150.58,15.82]
[1746686564898,7.46792846,150.62,150.58,23.28792846]
[1746686565705,23.23882876,150.61,150.58,23.28792846]
[1746686567007,16.5991634,150.61,150.58,23.28792846]
[1746686571318,16.5991634,150.61,150.59,7.46792846]
[1746686576016,16.5991634,150.61,150.58,23.28792846]
[1746686577920,16.5991634,150.61,150.58,15.82]
[1746686578218,16.5991634,150.61,150.58,23.28792846]
[1746686580126,16.5991634,150.61,150.59,7.46792846]
[1746686583023,16.5991634,150.61,150.58,23.28792846]
[1746686589357,16.5991634,150.61,150.6,7.46792846]
[1746686589511,16.5991634,150.61,150.59,7.46792846]
[1746686591623,6.63922453,150.62,150.59,7.46792846]
[1746686592913,23.23728587,150.62,150.59,7.46792846]
[1746686593822,23.23728587,150.62,150.6,15.78]
[1746686602239,23.23728587,150.62,150.6,23.24792846]
[1746686602445,6.63834306,150.64,150.61,7.46792846]
[1746686602742,6.63834306,150.64,150.62,7.46792846]
[1746686607641,6.63834306,150.64,150.6,17.2983]
[1746686607844,23.23351078,150.65,150.62,7.46792846]
[1746686609346,24.06353682,150.65,150.61,7.46792846]
[1746686609546,24.06353682,150.65,150.6,24.76622846]